Cogmind - Beta 15 @@@ ROGUE MODE // 2025.05.17 @ 00:03:02 Player: Ciaphas Result: Destroyed by Y-45 Defender with Beam Rifle Performance ------------- Evolutions (2) 1000 Regions Visited (4) 800 Robots Destroyed (87) 435 Value Destroyed (2788) 2788 Prototype IDs (6) 120 Alien Tech Used (0) 0 Bonus (328) 328 TOTAL SCORE: 5471 Bonus ------- High Alert Combat Kills 128 Entered Garrisons 200 Cogmind --------- Core Integrity 0/550 Matter 163/300 Energy 100/100 System Corruption 1% Temperature Cool (9) Movement Core (50) Location -8/Garrison Parts ------- > --- POWER (1) -------- (None) > --- PROPULSION (3) --- (None) > --- UTILITY (4) ------ (None) > --- WEAPON (3) ------- (None) > --- INVENTORY (5) ---- Reactive Plating Relay Coupler [Sentry] (22) Advanced Beam Cannon Maul Peak State ------------ > --- POWER ------------ Micro Nuclear Core > --- PROPULSION ------- Airjet Airjet Airjet > --- UTILITY ---------- Heat Sink Improved Sensor Array Reactive Plating Hacking Suite > --- WEAPON ----------- Heavy Assault Cannon Advanced EMP Blaster > --- INVENTORY -------- Relay Coupler [Sentry] Advanced Beam Cannon Maul [Rating: 33] Favorites ----------- Power Nuclear Core Engine Ion Engine Power Core Nuclear Core Propulsion Light Treads Treads Light Treads Leg Aluminum Leg Hover Unit Airjet Flight Unit Improved Flight Unit Utility Structural Scanner Device Structural Scanner Storage Large Storage Unit Hackware Hacking Suite Protection Light Armor Plating Weapon Advanced Beam Cannon Energy Gun Beam Rifle Energy Cannon Advanced Beam Cannon Ballistic Gun Assault Rifle Ballistic Cannon Heavy Assault Cannon Launcher Grenade Launcher Impact Weapon Maul Build | -11 -10 -9 -8 -8 ------- Run | Yrd Mat Mat Mat Gar Slots Evolved 4 | . . 2 2 . Power . | . . . . . Propulsion 1 | . . 1 . . Utility 2 | . . 1 1 . Weapon 1 | . . . 1 . Parts Attached 63 | 2 1 34 23 3 Power 5 | . . 3 2 . Engine 2 | . . 2 . . Core 3 | . . 1 2 . Reactor . | . . . . . Propulsion 23 | . . 14 8 1 Treads 17 | . . 12 5 . Leg 1 | . . 1 . . Wheel . | . . . . . Hover 4 | . . . 3 1 Flight 1 | . . 1 . . Utility 15 | 1 1 9 3 1 Device 9 | 1 . 6 2 . Storage 2 | . 1 1 . . Processor . | . . . . . Hackware 1 | . . . 1 . Protection 3 | . . 2 . 1 Artifact . | . . . . . Weapon 20 | 1 . 8 10 1 Energy Gun 4 | . . 2 2 . Energy Cannon 7 | . . 4 3 . Ballistic Gun 4 | 1 . 1 2 . Ballistic Cannon 1 | . . . . 1 Launcher 3 | . . 1 2 . Special Weapon . | . . . . . Impact Weapon 1 | . . . 1 . Slashing Weapon . | . . . . . Piercing Weapon . | . . . . . Special Melee Weapon . | . . . . . Unidentified Prototypes 6 | . . 3 3 . Parts Lost 21 | . . 4 7 10 Power 1 | . . . . 1 Propulsion 11 | . . 3 4 4 Utility 7 | . . 1 2 4 Weapon 2 | . . . 1 1 Highest Loss Streak 5 | . . 3 4 5 To Critical Strikes . | . . . . . Average Backups 10 | 3 5 10 13 2 Power . | 1 1 1 1 . Propulsion 4 | 2 2 4 5 . Utility 2 | . 1 2 3 . Weapon 2 | . . 2 3 1 Tool/Special . | . . . . . Unused Backups 17 | 2 4 4 2 5 Power 3 | . 1 1 1 . Propulsion 4 | . 2 2 . . Utility 4 | . . 1 1 2 Weapon 6 | 2 1 . . 3 Tool/Special . | . . . . . Average Slot Usage (%) 96 | . 100 98 97 71 Engine 5 | . 14 7 . . Core 5 | . . 3 9 6 Treads 25 | . . 30 26 . Leg 2 | . 28 1 . . Hover 1 | . . . . 20 Device 17 | . 14 17 21 13 Storage 9 | . 14 11 8 . Protection 3 | . . 3 4 6 Energy Gun 2 | . . 4 . . Energy Cannon 13 | . . 14 14 3 Ballistic Gun 5 | . 28 2 8 . Launcher 1 | . . . 3 5 Peak Build Rating 33 | 9 9 19 31 33 Average Rating 17 | 7 9 15 25 23 On Entrance 13 | 6 9 9 19 24 Naked Turns 18 | . . . . 18 Heaviest Build 53 | 15 20 40 53 33 Greatest Support 60 | 20 20 60 60 24 Greatest Overweight (x) 7 | . . . 1 7 Average Overweight (x) . | . . . . . Largest Inventory Capacity 15 | 8 10 15 15 5 Average Capacity 12 | 8 8 13 14 5 Most Carried 15 | 6 7 15 15 5 Average Carried 10 | 3 5 10 13 3 Final Capacity 15 | 8 10 15 5 5 Final Carried 15 | 3 7 15 3 4 Class Distribution -------------------- 54% | Scavenger-Mutant 23% | Mutant 17% | Scavenger-Skirmisher Dominant Class ---------------- Mutant | -10/Materials Scavenger-Mutant | -9/Materials Scavenger-Skirmisher | -8/Materials Mutant | -8/Garrison Resources | -11 -10 -9 -8 -8 ----------- Run | Yrd Mat Mat Mat Gar Matter Collected 1445 | 286 66 612 475 6 Remotely . | . . . . . Salvage Created 3135 | 76 66 1528 1367 98 Parts 163 | 3 4 93 60 3 Haulers Intercepted 7 | . 1 4 2 . Recyclers Shooed 2 | 1 . 1 . . Parts Field Recycled . | . . . . . Retrieved Matter . | . . . . . Parts Self-Destructed . | . . . . . Prevented . | . . . . . Kills | -11 -10 -9 -8 -8 ------- Run | Yrd Mat Mat Mat Gar Combat Hostiles Destroyed 57 | . . 37 17 3 Guns 12 | . . 7 5 . Cannons 27 | . . 16 9 2 AOE 11 | . . 10 . 1 Classes Destroyed 13 | 2 2 7 2 . Worker 4 | . . 2 2 . Builder 3 | . . 2 1 . Tunneler 1 | 1 . . . . Hauler 7 | . 1 4 2 . Recycler 4 | 1 . . 3 . Mechanic 1 | . . . 1 . Operator 1 | . . 1 . . Watcher 9 | . 1 4 4 . Swarmer 11 | . . 11 . . Grunt 30 | . . 15 12 3 Brawler 1 | . . . 1 . Duelist 3 | . . 2 1 . Sentry 12 | . . 9 3 . Best Kill Streak 9 | 2 1 9 5 3 Combat Bots Only 4 | . . 4 3 3 Max Kills in Single Turn 4 | 1 1 4 2 1 Gunslinging . | . . . . . Exploded 3 | . . 3 . 1 Melee . | . . . . . Uniques/NPCs Destroyed . | . . . . . Combat | -11 -10 -9 -8 -8 -------- Run | Yrd Mat Mat Mat Gar Hostile Shots Fired 484 | . . 182 147 155 Missed 165 | . . 56 58 51 Hits 319 | . . 126 89 104 Melee 8 | . . 8 . . Projectile 311 | . . 118 89 104 Critical Strikes 9 | . . 3 4 2 Damage Taken 4309 | . . 1764 1338 1207 Core 823 | . . 267 98 458 Absorbed by Shields 4 | . . . . 4 Ignored by Resistances 84 | . . . . 84 Core Remaining (%) 77 | 100 100 33 . . Volleys Fired 238 | 11 7 118 92 10 Largest 3 | 2 2 2 3 1 Hottest 240 | 40 40 136 240 50 Shots Fired 432 | 22 14 231 155 10 Gun 199 | 22 14 99 64 . Cannon 227 | . . 128 91 8 Launcher 6 | . . 4 . 2 Special . | . . . . . Kinetic 143 | 22 14 35 64 8 Thermal 283 | . . 192 91 . Explosive 4 | . . 4 . . Electromagnetic 2 | . . . . 2 Robot Hit Streak 13 | 4 2 13 11 4 Robot Miss Streak 4 | 2 3 4 3 3 Penetration Max . | . . . . . Secondary Targets 3 | . . 3 . . Max Gunslinging Chain 1 | . . 1 . . Shots Hit Robots 266 | 13 5 145 98 5 Core Hits 105 | 3 2 53 43 4 Critical Kills 6 | . . 3 3 . Critical Parts Destroyed 1 | 1 . . . . Critical Strikes 11 | 1 . 7 3 . Burn 4 | . . 4 . . Meltdown 6 | . . 3 3 . Destroy 1 | 1 . . . . Melee Attacks 7 | . . . . 7 Impact 7 | . . . . 7 Slashing . | . . . . . Piercing . | . . . . . Sneak Attacks . | . . . . . Combat Hostiles . | . . . . . Follow-up Attacks . | . . . . . Damage Inflicted 6211 | 169 65 3171 2410 396 Guns 1810 | 169 65 849 727 . Cannons 3595 | . . 1727 1673 195 Explosions 729 | . . 570 . 159 Melee . | . . . . . Ramming 77 | . . 25 10 42 Kinetic 1422 | 169 65 266 727 195 Thermal 3983 | . . 2310 1673 . Explosive 570 | . . 570 . . Electromagnetic 159 | . . . . 159 Impact . | . . . . . Slashing . | . . . . . Piercing . | . . . . . Highest Corruption 1 | . . . . 1 Average Corruption 1 | . . . . 1 Corruption Purged . | . . . . . Corruption Blocked . | . . . . . Overload Shots . | . . . . . Overflow Damage 99 | . . 72 13 14 Projectiles 55 | . . 28 13 14 Explosions 44 | . . 44 . . Melee . | . . . . . Knockbacks 1 | . . . . 1 Impact . | . . . . . Kinetic 1 | . . . . 1 Secondary . | . . . . . Self-Inflicted Damage 94 | . . 39 . 55 Shots 3 | . . 1 . 2 Rammed 17 | . . 4 2 11 Targets Rammed 19 | . . 4 4 11 Kicked . | . . . . . Crushed 2 | . . . 2 . Highest Temperature 386 | . . 386 333 121 Average Temperature 81 | . . 82 83 60 Received Heat Transfer 1605 | . . 603 720 282 Effects 6 | . . 3 3 . Shutdowns 1 | . . . 1 . Energy Bleed 2 | . . . 2 . Interference 2 | . . 2 . . Damage (minor) 1 | . . 1 . . Siege Activations . | . . . . . Martial Activations . | . . . . . Shielding Activations . | . . . . . Robots Disrupted . | . . . . . Combat Hostiles . | . . . . . Robots Corrupted . | . . . . . Combat Hostiles . | . . . . . Parts Fried 1 | . . . . 1 Impact Corruptions . | . . . . . Robots Melted 7 | . . 4 3 . Combat Hostiles 7 | . . 4 3 . Parts Melted 33 | . . 19 14 . Heat Transferred 8184 | . . 4884 3300 . Parts Sabotaged . | . . . . . Parts Stolen . | . . . . . Parts Stripped . | . . . . . Power Chain Reactions . | . . . . . Alert | -11 -10 -9 -8 -8 ------- Run | Yrd Mat Mat Mat Gar Maximum Alert Level 2 | . . 2 1 2 Low Security (%) 46 | 100 100 28 86 11 Level 1 28 | . . 31 13 74 Level 2 25 | . . 39 . 14 Level 3 . | . . . . . Level 4 . | . . . . . Level 5 . | . . . . . High Security . | . . . . . Max Security . | . . . . . Peak Influence 564 | 10 7 564 272 410 Initial 154 | . . . 120 154 Average 240 | 1 . 303 127 320 Influence Increases 2013 | 10 14 1121 555 313 Destroy 0b10 Robot/C 1140 | . . 740 340 60 Destroy 0b10 Robot/NC 150 | 10 10 65 65 . Destroy Leader 282 | . 4 196 82 . Trap Triggered on 0b10 30 | . . . . 30 Successful Hack 42 | . . 37 5 . Disable Machine 90 | . . . 30 60 Anti-Garrison Action 100 | . . . . 100 Destroy Structure 74 | . . 38 18 18 Lose Combat Pursuer 105 | . . 45 15 45 Influence Decreases 1646 | 10 14 836 603 183 Entered New Map 248 | . . . 165 83 Time Decay 878 | 10 14 486 368 . Lost Part 210 | . . 40 70 100 Lost Ally 10 | . . 10 . . Purge Threat 300 | . . 300 . . Squads Dispatched 7 | . 1 3 3 . Investigation . | . . . . . Extermination . | . . . . . Reinforcement 6 | . 1 3 2 . Assault . | . . . . . Garrison 1 | . . . 1 . Intercept . | . . . . . Searches Triggered . | . . . . . Construction Impeded 2 | . . 1 1 . Haulers Reinforced . | . . . . . Active Scanning Responses . | . . . . . Cargo Convoy Interrupts . | . . . . . Stealth | -11 -10 -9 -8 -8 --------- Run | Yrd Mat Mat Mat Gar Distress Signals 10 | . . 5 5 . Communications Jammed . | . . . . . Distress Signals . | . . . . . Times Spotted 110 | . 2 55 28 25 Peak Tracking Total 13 | . 1 6 6 13 Tactical Retreats 3 | . . 1 1 1 Traps | -11 -10 -9 -8 -8 ------- Run | Yrd Mat Mat Mat Gar Traps Triggered 1 | . . . . 1 Indirectly . | . . . . . Trap Hack Attempts . | . . . . . Triggered . | . . . . . Disarmed . | . . . . . Reprogrammed . | . . . . . Reused 3 | . . . . 3 Traps Extracted . | . . . . . Installed 3 | . . . . 3 Triggered 3 | . . . . 3 Most Traps Carried 4 | . . . . 4 Machines | -11 -10 -9 -8 -8 ---------- Run | Yrd Mat Mat Mat Gar Machines Disabled 8 | . . . 2 6 Max in Single Turn 1 | . . . 1 1 Garrison Relay 2 | . . . . 2 Machines Repaired . | . . . . . Machines Dismantled . | . . . . . Machines Sabotaged . | . . . . . Overloaded Fab Kills . | . . . . . Hacking | -11 -10 -9 -8 -8 --------- Run | Yrd Mat Mat Mat Gar Machines Accessed 16 | . . 11 4 1 Terminals 14 | . . 10 3 1 Fabricators . | . . . . . Repair Stations . | . . . . . Recycling Units 1 | . . 1 . . Scanalyzers . | . . . . . Garrison Access 1 | . . . 1 . Total Hacks 39 | . . 31 6 2 Successful 19 | . . 15 3 1 Failed 20 | . . 16 3 1 Catastrophic 6 | . . 5 1 . Database Lockouts . | . . . . . Manual 32 | . . 27 5 . Terminals 37 | . . 30 5 2 Fabricators . | . . . . . Repair Stations . | . . . . . Recycling Units 1 | . . 1 . . Scanalyzers . | . . . . . Garrison Access 1 | . . . 1 . Terminal Hacks 5 | . . 4 . 1 Emergency Access Points 1 | . . . . 1 Alert Level 1 | . . 1 . . Unreport Threat 2 | . . 2 . . Hauler Manifests 1 | . . 1 . . Fabricator Hacks . | . . . . . Repair Station Hacks . | . . . . . Recycling Unit Hacks 1 | . . 1 . . Report Inventory 1 | . . 1 . . Scanalyzer . | . . . . . Garrison Access Hacks 1 | . . . 1 . Unlock Access 1 | . . . 1 . Unauthorized Hacks 12 | . . 10 2 . Terminals 12 | . . 10 2 . Assimilate 1 | . . 1 . . Botnet 5 | . . 4 1 . Skim 6 | . . 5 1 . Fabricators . | . . . . . Repair Stations . | . . . . . Recycling Units . | . . . . . Scanalyzers . | . . . . . Garrison Access . | . . . . . Data Cores Recovered . | . . . . . Used . | . . . . . Hacking Detections 14 | . . 10 3 1 Full Trace Events . | . . . . . Feedback Events . | . . . . . Feedback Blocked . | . . . . . Robot Schematics Acquired . | . . . . . Robots Built . | . . . . . Authchips . | . . . . . Time . | . . . . . Total Robot Build Rating . | . . . . . Part Schematics Acquired . | . . . . . Parts Built . | . . . . . Authchips . | . . . . . Time . | . . . . . Total Part Build Rating . | . . . . . Parts Repaired . | . . . . . Time . | . . . . . Parts Recycled . | . . . . . Recycled Matter . | . . . . . Retrieved Matter . | . . . . . Retrieved Components . | . . . . . Parts Scanalyzed . | . . . . . Part Schematics Acquired . | . . . . . Parts Damaged . | . . . . . Bothacking | -11 -10 -9 -8 -8 ------------ Run | Yrd Mat Mat Mat Gar Used RIF Installer . | . . . . . Robots Hacked . | . . . . . Non-combat . | . . . . . Combat . | . . . . . Robot Hacks Applied . | . . . . . Relay Couplers Released 9 | . . . . 9 Machine Destruction 9 | . . . . 9 Fabnet Peak Effective % . | . . . . . Robots Rewired . | . . . . . Allies Hacked . | . . . . . Hacks Repelled . | . . . . . Allies | -11 -10 -9 -8 -8 -------- Run | Yrd Mat Mat Mat Gar Total Allies 1 | . . 1 . . Largest Group 1 | . . 1 . . Highest-Rated Group 10 | . . 10 . . Highest-Rated Ally 10 | . . 10 . . Total Orders . | . . . . . Ally Attacks . | . . . . . Total Damage . | . . . . . Kills . | . . . . . Allies Corrupted . | . . . . . Allies Melted . | . . . . . Intel | -11 -10 -9 -8 -8 ------- Run | Yrd Mat Mat Mat Gar Active Infowar (turns) 3357 | 21 200 2187 696 253 Sensors 657 | . . . 404 253 Terrain 564 | 21 200 125 218 . Structural 2421 | . . 2062 359 . Robot Analysis Total . | . . . . . Derelict Logs Recovered . | . . . . . Drone Launches . | . . . . . Drone Recoveries . | . . . . . Exploration | -11 -10 -9 -8 -8 ------------- Run | Yrd Mat Mat Mat Gar Turns Passed 3576 | 61 200 2187 857 271 Spaces Moved 1861 | 20 144 1085 342 270 Core 49 | . . . . 49 Treads 1360 | . . 1034 326 . Legs 215 | 20 144 51 . . Wheels . | . . . . . Hover 237 | . . . 16 221 Flight . | . . . . . Fastest Speed 50 | 120 120 120 52 50 Average Speed 140 | 120 120 158 155 65 Slowest Speed 400 | 120 120 160 240 400 Overloaded Moves . | . . . . . Propulsion Burnouts . | . . . . . Robots Hopped . | . . . . . Potential Cave-ins . | . . . . . Cave-ins Triggered . | . . . . . Exploration Rate (%) 40 | 3 22 91 42 44 Regions Visited 4 Branch Regions . Pre-discovered Areas 4 | . . 4 . . Known Exits Taken 2 | . . 1 1 . Unknown Exits Taken 2 | 1 1 . . . Scrap Searched . | . . . . . Spaces Dug . | . . . . . Terrain Destroyed 48 | . . 26 18 4 Melee . | . . . . . Projectile 22 | . . . 18 4 AOE 26 | . . 26 . . Terrain Rammed . | . . . . . Walls Destroyed . | . . . . . Machines Disabled . | . . . . . Actions | -11 -10 -9 -8 -8 --------- Run | Yrd Mat Mat Mat Gar Total 2402 | 35 156 1323 547 341 Wait 79 | . 2 37 40 . Move 1857 | 19 143 1084 341 270 Hop . | . . . . . Pick Up 22 | . 3 6 4 9 Fast Attach 30 | 1 . 14 13 2 Attach 22 | . . 6 13 3 Detach 24 | . . 9 12 3 Swap 33 | 1 1 23 7 1 Drop 55 | 3 . 22 21 9 Fire 238 | 11 7 118 92 10 Melee 7 | . . . . 7 Ram 11 | . . . . 11 Kick . | . . . . . Crush 8 | . . 4 4 . Escape Stasis 13 | . . . . 13 Rewire . | . . . . . Trap 3 | . . . . 3 Miscellaneous . | . . . . . Route ------- -11/Scrapyard -10/Materials -9/Materials (discovered 4 exits: *Mat x3 / [*Min]) -8/Materials (discovered 3 exits: Fac / Sto / Gar) -8/Garrison History --------- Turn | Location | Event 38 | -11/Scrapyard | Discovered new exit (range 3) 62 | -11/Scrapyard | Entered Materials 239 | -10/Materials | Discovered new exit (range 7) 262 | -10/Materials | Entered another Materials area 262 | -9/Materials | Evolved 2 slots: Propulsion x1, Utility x1 301 | -9/Materials | Build established: Mutant 649 | -9/Materials | Build established: Scavenger-Mutant 1138 | -9/Materials | Core integrity fell below 50% 1167 | -9/Materials | Discovered new exit (range 13) 1174 | -9/Materials | Lost 3 parts (2n1u) 1812 | -9/Materials | Learned location of Recycling (-8) 1840 | -9/Materials | Loaded intel: 16 trap records 1863 | -9/Materials | Loaded intel: 2 repair station locations 1864 | -9/Materials | Identified exit to Materials 1883 | -9/Materials | Learned 4 Materials zone layouts 2449 | -9/Materials | Entered another Materials area 2449 | -8/Materials | Evolved 2 slots: Utility x1, Weapon x1 2450 | -8/Materials | Identified exit to Storage 2450 | -8/Materials | Identified exit to Factory 3276 | -8/Materials | Garrison activated, responded to threat 3305 | -8/Materials | Identified exit to Garrison 3306 | -8/Materials | Entered Garrison 3308 | -8/Garrison | Triggered checkpoint 3317 | -8/Garrison | Lost 4 parts (2n1u1w) 3369 | -8/Garrison | Garrison Relay disabled 3379 | -8/Garrison | Garrison Relay disabled 3400 | -8/Garrison | Triggered checkpoint 3420 | -8/Garrison | Triggered checkpoint 3498 | -8/Garrison | Lost 4 parts (2n1u1w) 3505 | -8/Garrison | Spotted B-75 Beast 3513 | -8/Garrison | Spotted B-75 Beast 3542 | -8/Garrison | Core integrity fell below 50% 3558 | -8/Garrison | Triggered checkpoint 3571 | -8/Garrison | Core integrity fell below 20% 3577 | -8/Garrison | Destroyed by Y-45 Defender with Beam Rifle Last Messages --------------- 03506_ Hacking Suite destroyed. 03506_ Critical hit (Blast). 03506_ Acquired 6 matter. 03509_ Mic. Nuclear Core destroyed. 03509_ S-10 Pest destroyed. 03520_ Airjet destroyed. 03530_ Connecting with Garrison Terminal... >>Access(Emergency) Found 67 emergency access points. Map updated. 03531_ Airjet destroyed. 03531_ Slug penetrates Wall. 03542_ Dropped Hvy. Assault Cannon. 03558_ Beams of light sweep through the air. An alarm sounds. 03559_ Imp. Sensor Array destroyed. 03559_ Slammed into S-10 Pest. 03559_ Destabilizing: System corrupted (+1). 03560_ Slammed into S-10 Pest. 03572_ Slammed into Y-45 Defender. 03575_ Slammed into S-10 Pest. Map ----- +----------------------------------------------------+ | | | | | | | | | | | | | | | | | | | ????????????????????????????????????????????? | | ????????????????????????????????????????????? | | ????????????????????????????????????????????? | | ????????????????????????????????????????????? | | ????????????????????????????????????????????? | | ????????????????????????????????????????????? | | ????????????????????????????????????????????? | | ????????????????????????????????????????????? | | ????????????????????????????????????????????? | | ????????????????????????????????????????????? | | ??###+#######???????????????????????????????? | | #???? ????????????????????????? | | ? #???# ????#####???????????????? | | ?? #???# ????# ##??????????????? | | ?? #???# ????## #??????????????? | | ??? +???+ #???#ss #??????????????? | | ???? #???# #???#@ Y #??????????????? | | ????? #???# #???#BB###??????????????? | | ????? #???# ####sBB#????????????????? | | ?????? #???# / ##????????????????? | | ???????=% ????# #"";; #?????????????????? | | #++????#//#?????# ####;g#?????????????????? | | # ????# #?????# #??#; #??#####??????????? | | # ????# #?????# #??#; ##?# #??????????? | | # ????# #?????# ####;+;### #??????????? | | # ????# #?????# +] #??+???????? | | # ????# #?????# """;;+#### #??????????? | | # ????# #?????# T####????# +??????????? | | # ##### ####### ##??# ???# #??????????? | | + #???#+#### #??+???????? | | " #???# #??????????? | | ##"############# #???#" "#??????????? | | ??# #???????????# #???#""""""""#??????????? | | ??# ########????# #???#""""""""#??????????? | | ??# "]] !!##???# #???##########??????????? | | ?#### ] #???# #???????????????????????? | | ###### ! %##### #???????????????????????? | | =%%! +???????????????????????? | | ###### ##### #???????????????????????? | | ????#!!% ! #???# #???????????????????????? | | #???#!!%!! #?# #????+???????+??????????? | +----------------------------------------------------+ Best States ------------- Heat Dissipation 63 Energy Generation 15 Energy Capacity 280 Matter Stores 300 Matter Capacity 300 Sight Range 16 Robot Scan Range 15 Terrain Scan Range 16 Terrain Scan Density 10 Armor Coverage 150 Resistance: KI 20 Evasion (%) 55 Recoil Reduction 3 Offensive Hacking 10 Item Schematics ----------------- None Robot Schematics ------------------ None Fabricated ------------ Nothing Repaired ---------- Nothing Alien Tech Used ----------------- None Achievements -------------- None Challenges ------------ None Game ------ Seed AerolevDispersionMeganuke Manual? 0 Play Time 00:38:06 Cumulative 36.5 hours Start 2025.05.16 @ 23:24:33 End 2025.05.17 @ 00:03:02 Sessions 1 Manual Loads 0 Difficulty Rogue Special Mode None Game No. 59 Rogue 59 Adventurer 0 Explorer 0 Win Type - Total 1 Types 1/0/0/0/0/0/0/0/0/0 Lore% 23 Gallery% 29 Achievement% 34 Wizard Run 0 Options --------- Layout 0 ASCII 0 Keyboard 0 Movement Numpad Keybinds 0 Fullscreen 2 Font 24/Smallcaps Map View 76x50 Zoom Use 0% Tactical HUD 1 Map Filters NONE Filters NONE Steam 1 RUN: 8833a60d-5da8-41c8-9716-2d4a7496ae35